[Event "IV Estrellas 2022"]
[Site "La Palma"]
[Date "2022.08.12"]
[Round "9.18"]
[White "Martin Ramos, Daniel"]
[Black "Lopez Pereyra, Antonio"]
[Result "1-0"]
[ECO "A96"]
[WhiteElo "1582"]
[BlackElo "1989"]
[Annotator "TA"]
[PlyCount "120"]
[EventDate "2022.08.06"]
[EventType "swiss"]
[EventCountry "ESP"]
[SourceTitle "playchess.com"]
[Source "ChessBase"]
[SourceQuality "1"]
[TimeControl "5400+30"]

{[%evp 15,120,50,51,37,47,35,40,44,38,21,22,-41,-29,-29,-40,-63,-77,-113,-45,-45,-42,-37,72,71,122,112,118,110,126,124,126,102,124,109,122,120,172,144,142,143,298,293,284,287,278,282,278,137,137,137,171,77,422,402,410,399,406,368,377,375,361,350,377,349,341,358,339,304,457,450,399,288,247,246,175,103,107,90,3275,4798,5462,5462,3682,3492,1975,2764,2312,699,1254,1108,7308,587,5951,6091,5081,4134,29972,29973,29972,5858,4633,4627,29982,1214,29980,29981,29988]} 1. Nf3 {[%emt 0:00:19]} d6 {[%emt 0:00:15]} 2. d4 {[%emt 0:00:23]} f5 {[%emt 0:00:06]} 3. g3 {[%emt 0:01:37]} Nf6 {[%emt 0:00:33]} 4. Bg2 {[%emt 0:00:30]} e6 {[%emt 0:00:28]} 5. c4 {[%emt 0:02:10]} Be7 {[%emt 0:00:54]} 6. Nc3 {[%emt 0:01:17]} O-O {[%emt 0:01:05]} 7. O-O {[%emt 0:00:21]} a5 {[%emt 0:01:27]} 8. Re1 {[%emt 0:18:37]} Ne4 {[%emt 0:04:28]} 9. Nd2 {[%emt 0:03:26] A96: Classical Dutch: Fluid Systems: Early deviations.} Nxc3 {[%emt 0:00:58]} 10. bxc3 {[%emt 0:00:07]} e5 {[%emt 0:00:19]} 11. e4 {[%emt 0:11:23] White is slightly better.} f4 {[%emt 0:00:57]} 12. Nf3 {[%emt 0:01:49] [#]} Nc6 $146 {[%emt 0:05:04]} ({Predecessor:} 12... fxg3 13. fxg3 Nc6 14. Be3 Bg4 15. h3 Bxf3 16. Bxf3 Bg5 17. Bf2 Qf6 18. Kg2 Bd2 19. Qxd2 Qxf3+ {0-1 (27) Raivio,Y-Naumkin,I (2450) Jyvaskyla 1993}) 13. d5 {[%emt 0:01:25]} (13. gxf4 $11 exf4 14. Ba3) 13... Nb8 {[%emt 0:00:19]} 14. gxf4 {[%emt 0:00:33]} exf4 {[%emt 0:00:25]} 15. Nd4 {[%emt 0:00:44]} Bf6 {[%emt 0:03:30]} 16. Qf3 {[%emt 0:16:19]} Na6 {[%emt 0:15:10]} (16... Nd7 $1 $17 {[%cal Rd7e5] White must now prevent ...Ne5.} 17. Qe2 (17. Bxf4 Bxd4 18. cxd4 Qf6 $15) 17... Nb6) 17. Bh3 $15 {[%emt 0:00:41]} ({Wrong is} 17. Bxf4 $2 g5 18. Qg3 (18. e5 $2 Bxe5 19. Bxe5 Rxf3 $19) 18... Bxd4 19. cxd4 Rxf4 $19) 17... Nc5 {[%emt 0:06:05]} 18. Ba3 {[%emt 0:01:52]} Be5 {[%emt 0:08:22]} (18... Nd7 $15 19. Be6+ Kh8) 19. Bxc8 $16 {[%emt 0:07:39]} Rxc8 {[%emt 0:00:15]} (19... Qxc8 $142 20. Bxc5 dxc5) 20. Bxc5 {[%emt 0:00:24]} dxc5 {[%emt 0:00:01]} 21. Ne6 {[%emt 0:00:21][%csl LRc5,LRd8,LRf8]} Qf6 {[%emt 0:00:05]} 22. Nxf8 {[%emt 0:00:17] White is more active.} Rxf8 {[%emt 0:01:58]} 23. Rac1 {[%emt 0:01:20]} Qa6 {[%emt 0:00:11]} 24. Qg4 {[%emt 0:07:28]} Re8 {[%emt 0:05:07]} 25. Rb1 {[%emt 0:03:07]} Kh8 {[%emt 0:03:27]} (25... Bxc3 $16 26. Rec1 (26. Qxf4 Bxe1 27. Rxe1 Qxc4 $11) 26... Be5) 26. Qf5 {[%emt 0:02:09]} b6 {[%emt 0:03:30]} 27. Qd7 {[%emt 0:03:08][%cal Rd7e8]} Rg8 {[%emt 0:06:54] [#]} (27... Qa8 $16 28. Re2 Rd8) 28. Qe6 $1 $18 {[%emt 0:03:41]} Bxc3 {[%emt 0:00:09]} 29. Rec1 {[%emt 0:01:14]} Bd4 {[%emt 0:00:55] [#]} 30. e5 $1 {[%emt 0:01:13]} Qa8 {[%emt 0:00:16]} 31. Qf5 {[%emt 0:00:48]} (31. d6 $18) 31... Rf8 $16 {[%emt 0:03:06]} 32. Qg5 {[%emt 0:01:17]} h6 {[%emt 0:05:38]} 33. Qe7 {[%emt 0:01:20]} (33. Qh5 $18 {and White stays clearly on top.}) 33... Re8 $2 {[%emt 0:01:57][%mdl 8192]} (33... Qc8 $16 {is tougher.} 34. e6 Bf6) 34. Qxc7 $18 {[%emt 0:00:05]} Bxe5 {[%emt 0:00:50]} 35. Qxb6 {[%emt 0:00:13]} Kh7 {[%emt 0:04:08]} 36. Kh1 {[%emt 0:01:46]} Qc8 {[%emt 0:01:23]} 37. Rg1 {[%emt 0:00:09]} Qf5 {[%emt 0:00:14] Against Qg6+} 38. Rbe1 {[%emt 0:01:03] Against Qe4+} f3 {[%emt 0:04:39]} 39. Qb1 {[%emt 0:00:46]} Qxb1 {[%emt 0:03:00]} 40. Rxb1 {[%emt 0:00:01][%mdl 4096] Endgame KRR-KRB} Rf8 {[%emt 0:00:57]} 41. Rge1 {[%emt 0:01:20]} Rf5 {[%emt 0:00:02]} (41... Bd4 $142 42. Kg1 Kg6 43. Re6+ Kg5) 42. Rbd1 {[%emt 0:00:43]} Rh5 {[%emt 0:00:03]} 43. Rxe5 {[%emt 0:00:48]} Rxe5 {[%emt 0:00:02] KR-KR} 44. d6 {[%emt 0:00:07]} Re8 {[%emt 0:00:11]} 45. d7 {[%emt 0:00:02]} (45. h4 $18) 45... Rd8 $16 {[%emt 0:00:05]} 46. h4 {[%emt 0:00:16] Hoping for Kh2.} g5 $2 {[%emt 0:01:07][%mdl 8192]} (46... Kg6 $16) 47. hxg5 $18 {[%emt 0:00:21]} hxg5 {[%emt 0:00:01]} 48. Kh2 {[%emt 0:00:14]} Kg6 {[%emt 0:00:12]} 49. Kg3 {[%emt 0:00:10]} Kf6 {[%emt 0:00:46]} 50. Kxf3 {[%emt 0:00:10]} Kf5 {[%emt 0:01:22]} 51. Rd5+ {[%emt 0:00:09]} (51. Rd3 $142 a4 52. Rd5+ Ke6 53. Kg4) 51... Kf6 {[%emt 0:00:02]} 52. Kg4 {[%emt 0:00:18]} Ke7 {[%emt 0:00:22]} 53. Rxg5 {[%emt 0:00:25]} (53. Kxg5 $142 {Intending Kf5 and mate.} Rg8+ 54. Kf5) 53... Rf8 {[%emt 0:01:49]} 54. Rd5 {[%emt 0:00:15]} Kd8 {[%emt 0:00:08]} 55. f4 {[%emt 0:00:04] White wants to mate with f5.} Rg8+ {[%emt 0:00:10]} 56. Kf5 {[%emt 0:00:51]} Rg2 {[%emt 0:00:18]} 57. Ke5 {[%emt 0:01:12]} (57. Ke6 $142 Rb2 58. a4 Re2+ 59. Kd6 Rf2 60. Rxc5 Rd2+ 61. Rd5 Rb2 62. c5) 57... Rxa2 {[%emt 0:00:38]} 58. Kd6 {[%emt 0:00:46] Rg5 would kill now.} a4 {[%emt 0:00:31]} 59. Kxc5 {[%emt 0:00:41]} (59. Rg5 $142 Rd2+ 60. Kc6 Rxd7 61. Rg8+ Ke7 62. Rg7+ Kf6 63. Rxd7 a3 64. Kxc5) 59... Rb2 {[%emt 0:00:23]} 60. Kc6 {[%emt 0:04:22]} a3 {[%emt 0:04:16] Weighted Error Value: White=0.47/Black=0.84} 1-0